fUSD/lending_fUSD_20240114
["ID","MTS","AMOUNT","RATE_DAILY","PERIOD"]
[311578382,1705253446528,-500.0,0.00030136,2]
[311578384,1705253446538,-500.0,0.00030136,2]
[311578386,1705253446547,-779.26,0.00030136,2]
[311578388,1705253446556,-500.0,0.00030136,2]
[311578391,1705253446566,-500.0,0.00030136,2]
[311578393,1705253446575,-530.231922,0.00030136,2]
[311578395,1705253446585,-500.0,0.00030136,2]
[311578397,1705253446594,-500.0,0.00030136,2]
[311578399,1705253446604,-716.54,0.00030136,2]
[311578401,1705253446613,-500.0,0.00030136,2]
[311578403,1705253446623,-220.8903797,0.00030136,2]
[311578405,1705253446632,-500.0,0.00030136,2]
[311578407,1705253446642,-500.0,0.00030136,2]
[311578409,1705253446652,-500.0,0.00030136,2]
[311578411,1705253446661,-500.0,0.00030136,2]
[311578413,1705253446671,-500.0,0.00030136,2]
[311578415,1705253446680,-500.0,0.00030136,2]
[311578417,1705253446690,-500.0,0.00030136,2]
[311578419,1705253446700,-1000.0,0.00030136,2]
[311578421,1705253446710,-500.0,0.00030136,2]
[311578422,1705253446719,-605.03,0.00030136,2]
[311578424,1705253446729,-521.98080028,0.00030136,2]
[311578425,1705253446739,-500.0,0.00030136,2]
[311578427,1705253446748,-500.0,0.00030136,2]
[311578428,1705253446756,-500.0,0.00030136,2]
[311578430,1705253446766,-500.0,0.00030136,2]
[311578431,1705253446775,-500.0,0.00030136,2]
[311578433,1705253446784,-500.0,0.00030136,2]
[311578434,1705253446794,-503.81,0.00030136,2]
[311578436,1705253446803,-204.36963575,0.00030136,2]
[311578437,1705253446812,-535.22,0.00030136,2]
[311578439,1705253446822,-500.0,0.00030136,2]
[311578440,1705253446831,-1000.0,0.00030136,2]
[311578442,1705253446840,-500.0,0.00030136,2]
[311578443,1705253446849,-502.79725048,0.00030136,2]
[311578445,1705253446858,-575.31,0.00030136,2]
[311578447,1705253446867,-500.0,0.00030136,2]
[311578448,1705253446876,-500.0,0.00030136,2]
[311578450,1705253446886,-500.0,0.00030136,2]
[311578451,1705253446895,-770.4,0.00030136,2]
[311578453,1705253446904,-500.0,0.00030136,2]
[311578454,1705253446914,-500.0,0.00030136,2]
[311578456,1705253446923,-1000.0,0.00030136,2]
[311578457,1705253446933,-500.0,0.00030136,2]
[311578459,1705253446943,-500.0,0.00030136,2]
[311578460,1705253446952,-500.0,0.00030136,2]
[311578462,1705253446961,-500.0,0.00030136,2]
[311578464,1705253446970,-500.0,0.00030136,2]
[311578465,1705253446979,-1864.04,0.00030136,2]
[311578467,1705253446988,-1001.6,0.00030136,2]
[311578469,1705253446998,-500.0,0.00030136,2]
[311578470,1705253447007,-500.0,0.00030136,2]
[311578472,1705253447016,-500.0,0.00030136,2]
[311578474,1705253447026,-500.0,0.00030136,2]
[311578475,1705253447034,-500.0,0.00030136,2]
[311578477,1705253447043,-500.0,0.00030136,2]
[311578479,1705253447053,-500.0,0.00030136,2]
[311578480,1705253447062,-500.0,0.00030136,2]
[311578482,1705253447071,-873.84,0.00030136,2]
[311578484,1705253447080,-500.0,0.00030136,2]
[311578485,1705253447090,-500.0,0.00030136,2]
[311578487,1705253447099,-542.54,0.00030136,2]
[311578489,1705253447108,-500.0,0.00030136,2]
[311578490,1705253447117,-500.0,0.00030136,2]
[311578492,1705253447126,-500.0,0.00030136,2]
[311578494,1705253447135,-500.0,0.00030136,2]
[311578495,1705253447145,-500.0,0.00030136,2]
[311578497,1705253447154,-500.0,0.00030136,2]
[311578499,1705253447164,-500.0,0.00030136,2]
[311578500,1705253447173,-500.0,0.00030136,2]
[311578502,1705253447183,-500.0,0.00030136,2]
[311578504,1705253447193,-500.0,0.00030136,2]
[311578505,1705253447202,-502.11142214,0.00030136,2]
[311578507,1705253447212,-500.0,0.00030136,2]
[311578509,1705253447222,-500.0,0.00030136,2]
[311578511,1705253447231,-500.0,0.00030136,2]
[311578512,1705253447241,-500.0,0.00030136,2]
[311578514,1705253447250,-500.0,0.00030136,2]
[311578516,1705253447261,-500.0,0.00030136,2]
[311578518,1705253447271,-500.0,0.00030136,2]
[311578519,1705253447281,-500.0,0.00030136,2]
[311578521,1705253447290,-780.02,0.00030136,2]
[311578523,1705253447299,-1000.0,0.00030136,2]
[311578524,1705253447309,-557.0,0.00030136,2]
[311578526,1705253447319,-522.83054288,0.00030136,2]
[311578528,1705253447328,-510.08901872,0.00030136,2]
[311578530,1705253447337,-710.24,0.00030136,2]
[311578531,1705253447348,-529.82049378,0.00030136,2]
[311578533,1705253447357,-500.0,0.00030136,2]
[311578535,1705253447370,-500.0,0.00030136,2]
[311578537,1705253447380,-500.0,0.00030136,2]
[311578539,1705253447389,-500.0,0.00030136,2]
[311578540,1705253447399,-500.0,0.00030136,2]
[311578541,1705253447408,-672.79,0.00030136,2]
[311578542,1705253447417,-500.0,0.00030136,2]
[311578543,1705253447426,-500.0,0.00030136,2]
[311578544,1705253447435,-1189.44,0.00030136,2]
[311578545,1705253447445,-500.0,0.00030136,2]
[311578546,1705253447455,-500.0,0.00030136,2]
[311578547,1705253447464,-658.26,0.00030136,2]
[311578548,1705253447473,-1189.44,0.00030136,2]
[311578549,1705253447483,-1189.44,0.00030136,2]
[311578550,1705253447492,-1189.44,0.00030136,2]
[311578552,1705253447501,-1189.44,0.00030136,2]
[311578553,1705253447510,-500.0,0.00030136,2]
[311578555,1705253447519,-1189.44,0.00030136,2]
[311578557,1705253447528,-1189.44,0.00030136,2]
[311578559,1705253447538,-1189.44,0.00030136,2]
[311578562,1705253447547,-1189.44,0.00030136,2]
[311578563,1705253447556,-1189.44,0.00030136,2]
[311578565,1705253447565,-1189.44,0.00030136,2]
[311578567,1705253447575,-1189.44,0.00030136,2]
[311578569,1705253447584,-1189.44,0.00030136,2]
[311578571,1705253447593,-567.00313606,0.00030136,2]
[311578574,1705253447603,-1189.44,0.00030136,2]
[311578576,1705253447611,-1189.44,0.00030136,2]
[311578577,1705253447621,-1189.44,0.00030136,2]
[311578579,1705253447630,-500.0,0.00030136,2]
[311578582,1705253447639,-500.0,0.00030136,2]
[311578583,1705253447648,-1189.44,0.00030136,2]
[311578585,1705253447657,-1189.44,0.00030136,2]
[311578587,1705253447667,-1189.44,0.00030136,2]
[311578590,1705253447676,-500.0,0.00030136,2]
[311578592,1705253447685,-1189.44,0.00030136,2]
[311578593,1705253447694,-500.0,0.00030136,2]
[311578595,1705253447704,-1189.44,0.00030136,2]
[311578598,1705253447713,-500.0,0.00030136,2]
[311578600,1705253447722,-1189.44,0.00030136,2]
[311578602,1705253447732,-1189.44,0.00030136,2]
[311578604,1705253447741,-1189.52490695,0.00030136,2]
[311578606,1705253447750,-500.0,0.00030136,2]
[311578607,1705253447760,-520.93,0.00030136,2]
[311578609,1705253447768,-500.0,0.00030136,2]
[311578612,1705253447778,-660.01,0.00030136,2]
[311578613,1705253447787,-500.0,0.00030136,2]
[311578616,1705253447796,-500.0,0.00030136,2]
[311578618,1705253447806,-500.0,0.00030136,2]
[311578620,1705253447815,-500.0,0.00030136,2]
[311578622,1705253447825,-547.82514324,0.00030136,2]
[311578624,1705253447834,-500.0,0.00030136,2]
[311578626,1705253447843,-500.0,0.00030136,2]
[311578628,1705253447852,-181.86324908,0.00030136,2]
[311578630,1705253447861,-500.0,0.00030136,2]
[311578632,1705253447870,-566.81550832,0.00030136,2]
[311578634,1705253447879,-306.61544273,0.00030136,2]
[311578636,1705253447889,-500.0,0.00030136,2]
[311578638,1705253447898,-500.0,0.00030136,2]
[311578640,1705253447907,-846.95,0.00030136,2]
[311578642,1705253447917,-514.18,0.00030136,2]
[311578644,1705253447926,-500.0,0.00030136,2]
[311578646,1705253447935,-500.0,0.00030136,2]
[311578648,1705253447943,-500.0,0.00030136,2]
[311578650,1705253447953,-500.52,0.00030136,2]
[311578652,1705253447962,-502.96940873,0.00030136,2]
[311578654,1705253447970,-500.0,0.00030136,2]
[311578656,1705253447980,-500.0,0.00030136,2]
[311578658,1705253447988,-1312.68,0.00030136,2]
[311578660,1705253447997,-500.0,0.00030136,2]
[311578661,1705253448007,-565.44,0.00030136,2]
[311578664,1705253448017,-500.0,0.00030136,2]
[311578666,1705253448027,-500.0,0.00030136,2]
[311578668,1705253448037,-504.71,0.00030136,2]
[311578670,1705253448045,-500.0,0.00030136,2]
[311578672,1705253448054,-569.97,0.00030136,2]
[311578674,1705253448063,-500.0,0.00030136,2]
[311578676,1705253448072,-500.0,0.00030136,2]
[311578678,1705253448082,-500.0,0.00030136,2]
[311578679,1705253448091,-500.0,0.00030136,2]
[311578681,1705253448101,-1833.94,0.00030136,2]
[311578684,1705253448110,-1833.94,0.00030136,2]
[311578686,1705253448120,-500.0,0.00030136,2]
[311578688,1705253448129,-1833.94,0.00030136,2]
[311578690,1705253448139,-1833.94,0.00030136,2]
[311578691,1705253448149,-500.0,0.00030136,2]
[311578694,1705253448159,-1833.94,0.00030136,2]
[311578696,1705253448169,-1833.94,0.00030136,2]
[311578698,1705253448179,-1833.94,0.00030136,2]
[311578700,1705253448188,-500.0,0.00030136,2]
[311578701,1705253448197,-1833.94,0.00030136,2]
[311578704,1705253448207,-1833.94,0.00030136,2]
[311578706,1705253448216,-1833.94,0.00030136,2]
[311578708,1705253448225,-1833.94,0.00030136,2]
[311578735,1705253448493,-1833.94,0.00030136,2]
[311578738,1705253448503,-1833.94,0.00030136,2]
[311578740,1705253448514,-1833.94,0.00030136,2]
[311578741,1705253448524,-1833.94,0.00030136,2]
[311578744,1705253448533,-1833.94,0.00030136,2]
[311578746,1705253448543,-500.0,0.00030136,2]
[311578748,1705253448553,-1833.94,0.00030136,2]
[311578750,1705253448562,-1178.97,0.00030136,2]
[311578752,1705253448572,-556.85,0.00030136,2]
[311578754,1705253448581,-1833.94,0.00030136,2]
[311578756,1705253448591,-1833.94,0.00030136,2]
[311578758,1705253448600,-1833.94,0.00030136,2]
[311578760,1705253448609,-1833.94,0.00030136,2]
[311578762,1705253448619,-1833.94,0.00030136,2]
[311578764,1705253448628,-1833.94,0.00030136,2]
[311578766,1705253448637,-1834.07795823,0.00030136,2]
[311578768,1705253448646,-393.60410018,0.00030136,2]
[311578775,1705253448703,-106.39589982,0.00030136,2]
[311578777,1705253448713,-500.0,0.00030136,2]
[311578779,1705253448723,-500.0,0.00030136,2]
[311578781,1705253448732,-500.0,0.00030136,2]
[311578783,1705253448742,-507.58,0.00030136,2]
[311578785,1705253448751,-504.64453812,0.00030136,2]
[311578787,1705253448761,-507.58,0.00030136,2]
[311578789,1705253448771,-507.58,0.00030136,2]
[311578791,1705253448780,-500.0,0.00030136,2]
[311578793,1705253448789,-500.0,0.00030136,2]
[311578795,1705253448798,-500.0,0.00030136,2]
[311578797,1705253448807,-500.0,0.00030136,2]
[311578799,1705253448816,-393.10755766,0.00030136,2]
[311578801,1705253448829,-106.89244234,0.00030136,2]
[311578803,1705253448838,-308.1384246,0.00030136,2]
[311578805,1705253448847,-500.0,0.00030136,2]
[311578807,1705253448856,-500.0,0.00030136,2]
[311578809,1705253448865,-500.0,0.00030136,2]
[311578811,1705253448874,-500.0,0.00030136,2]
[311578813,1705253448884,-500.0,0.00030136,2]
[311578815,1705253448893,-500.0,0.00030136,2]
[311578817,1705253448903,-500.0,0.00030136,2]
[311578819,1705253448912,-500.0,0.00030136,2]
[311578820,1705253448921,-500.0,0.00030136,2]
[311578821,1705253448931,-516.57,0.00030136,2]
[311578822,1705253448940,-500.0,0.00030136,2]
[311578823,1705253448950,-1429.1,0.00030136,2]
[311578824,1705253448960,-2721.79,0.00030136,2]
[311578825,1705253448969,-500.0,0.00030136,2]
[311578827,1705253448979,-500.0,0.00030136,2]
[311578829,1705253448989,-500.0,0.00030136,2]
[311578831,1705253449005,-502.05414852,0.00030136,2]
[311578833,1705253449014,-500.0,0.00030136,2]
[311578835,1705253449023,-500.0,0.00030136,2]
[311578837,1705253449033,-500.0,0.00030136,2]
[311578839,1705253449043,-711.99,0.00030136,2]
[311578841,1705253449052,-500.0,0.00030136,2]
[311578843,1705253449061,-500.0,0.00030136,2]
[311578845,1705253449071,-500.0,0.00030136,2]
[311578847,1705253449080,-500.0,0.00030136,2]
[311578849,1705253449089,-500.0,0.00030136,2]
[311578851,1705253449098,-514.45,0.00030136,2]
[311578853,1705253449107,-500.0,0.00030136,2]
[311578855,1705253449117,-695.54,0.00030136,2]
[311578857,1705253449126,-500.09810175,0.00030136,2]
[311578859,1705253449135,-147.18772861,0.00030136,2]
[311578863,1705253449157,-352.81227139,0.00030136,2]
[311578865,1705253449166,-506.67460572,0.00030136,2]
[311578867,1705253449175,-9.11808154,0.00030136,2]
[311578985,1705253450354,-295.28510411,0.00022151,2]
[311578986,1705253450364,-638.81191846,0.00030136,2]
[311578989,1705253450377,-619.0,0.00030136,2]
[311578991,1705253450386,-500.0,0.00030136,2]
[311578993,1705253450395,-945.31,0.00030136,2]
[311578994,1705253450405,-31.89866264,0.00030136,2]
[311578997,1705253450417,-468.10133736,0.00030136,2]
[311578999,1705253450427,-481.89866264,0.00030136,2]
[311579001,1705253450438,-18.10133736,0.00030136,2]
[311579003,1705253450447,-500.0,0.00030136,2]
[311579005,1705253450459,-500.0,0.00030136,2]
[311579007,1705253450468,-500.0,0.00030136,2]
[311579009,1705253450477,-559.06,0.00030136,2]
[311579011,1705253450486,-500.0,0.00030136,2]
[311579013,1705253450496,-1143.65,0.00030136,2]
[311579015,1705253450505,-1197.47,0.00030136,2]
[311579017,1705253450514,-290.02448265,0.00030136,2]
[311579024,1705253450570,-209.97551735,0.00030136,2]
[311579026,1705253450580,-416.86567989,0.00030136,2]
[311579028,1705253450590,-500.0,0.00030136,2]
[311579030,1705253450599,-456.36309884,0.00030136,2]
[311579032,1705253450609,-500.0,0.00030136,2]
[311579034,1705253450619,-740.68,0.00030136,2]
[311579036,1705253450628,-500.0,0.00030136,2]
[311579038,1705253450638,-500.0,0.00030136,2]
[311579040,1705253450647,-1332.72,0.00030136,2]
[311579042,1705253450656,-500.0,0.00030136,2]
[311579044,1705253450666,-500.0,0.00030136,2]
[311579046,1705253450675,-500.0,0.00030136,2]
[311579048,1705253450684,-500.0,0.00030136,2]
[311579050,1705253450693,-500.0,0.00030136,2]
[311579052,1705253450702,-1276.51,0.00030136,2]
[311579054,1705253450711,-500.0,0.00030136,2]
[311579056,1705253450721,-500.0,0.00030136,2]
[311579058,1705253450730,-500.0,0.00030136,2]
[311579060,1705253450739,-500.0,0.00030136,2]
[311579062,1705253450748,-500.0,0.00030136,2]
[311579074,1705253450850,-1157.44,0.00030136,2]
[311579076,1705253450859,-500.0,0.00030136,2]
[311579078,1705253450868,-500.0,0.00030136,2]
[311579080,1705253450877,-850.63,0.00030136,2]
[311579082,1705253450887,-1897.4,0.00030136,2]
[311579084,1705253450896,-830.86,0.00030136,2]
[311579086,1705253450906,-715.77,0.00030136,2]
[311579088,1705253450915,-500.0,0.00030136,2]
[311579090,1705253450924,-570.75,0.00030136,2]
[311579092,1705253450933,-1044.03570392,0.00030136,2]
[311579094,1705253450947,-350.40429608,0.00030136,2]
[311579096,1705253450956,-736.46,0.00030136,2]
[311579098,1705253450965,-500.0,0.00030136,2]
[311579100,1705253450974,-500.0,0.00030136,2]
[311579102,1705253450983,-680.7,0.00030136,2]
[311579104,1705253450992,-500.0,0.00030136,2]
[311579106,1705253451002,-500.0,0.00030136,2]
[311579108,1705253451011,-1692.43,0.00030136,2]
[311579110,1705253451020,-329.08900392,0.00030136,2]
[311579113,1705253451033,-170.91099608,0.00030136,2]
[311579115,1705253451043,-543.46,0.00030136,2]
[311579116,1705253451053,-500.0,0.00030136,2]
[311579118,1705253451063,-500.0,0.00030136,2]
[311579120,1705253451072,-584.7,0.00030136,2]
[311579122,1705253451082,-500.0,0.00030136,2]
[311579124,1705253451091,-500.0,0.00030136,2]
[311579126,1705253451100,-500.0,0.00030136,2]
[311579128,1705253451109,-500.0,0.00030136,2]
[311579130,1705253451118,-1034.42,0.00030136,2]
[311579132,1705253451128,-500.0,0.00030136,2]
[311579134,1705253451140,-500.0,0.00030136,2]
[311579136,1705253451149,-646.16,0.00030136,2]
[311579138,1705253451158,-500.0,0.00030136,2]
[311579140,1705253451167,-500.0,0.00030136,2]
[311579142,1705253451176,-500.0,0.00030136,2]
[311579144,1705253451186,-500.0,0.00030136,2]
[311579146,1705253451196,-500.0,0.00030136,2]
[311579149,1705253451205,-505.1114911,0.00030136,2]
[311579151,1705253451214,-500.0,0.00030136,2]
[311579153,1705253451224,-532.53,0.00030136,2]
[311579155,1705253451233,-500.0,0.00030136,2]
[311579156,1705253451242,-1141.8,0.00030136,2]
[311579158,1705253451251,-500.0,0.00030136,2]
[311579160,1705253451261,-500.0,0.00030136,2]
[311579162,1705253451270,-500.0,0.00030136,2]
[311579164,1705253451279,-500.0,0.00030136,2]
[311579166,1705253451289,-500.0,0.00030136,2]
[311579168,1705253451298,-806.38,0.00030136,2]
[311579170,1705253451307,-593.96,0.00030136,2]
[311579172,1705253451316,-500.0,0.00030136,2]
[311579174,1705253451326,-999.76,0.00030136,2]
[311579176,1705253451336,-500.0,0.00030136,2]
[311579179,1705253451347,-500.0,0.00030136,2]
[311579181,1705253451356,-889.72,0.00030136,2]
[311579183,1705253451367,-501.17351085,0.00030136,2]
[311579185,1705253451377,-500.0,0.00030136,2]
[311579187,1705253451386,-500.0,0.00030136,2]
[311579189,1705253451395,-330.58162116,0.00030136,2]
[311579191,1705253451404,-500.0,0.00030136,2]
[311579193,1705253451413,-500.0,0.00030136,2]
[311579194,1705253451422,-883.19,0.00030136,2]
[311579197,1705253451432,-500.0,0.00030136,2]
[311579198,1705253451442,-500.0,0.00030136,2]
[311579201,1705253451452,-986.19,0.00030136,2]
[311579203,1705253451463,-500.0,0.00030136,2]
[311579204,1705253451472,-500.0,0.00030136,2]
[311579206,1705253451482,-500.0,0.00030136,2]
[311579208,1705253451491,-500.0,0.00030136,2]
[311579210,1705253451501,-637.27,0.00030136,2]
[311579213,1705253451511,-500.0,0.00030136,2]
[311579214,1705253451520,-500.0,0.00030136,2]
[311579216,1705253451530,-500.0,0.00030136,2]
[311579218,1705253451539,-500.0,0.00030136,2]
[311579220,1705253451548,-500.0,0.00030136,2]
[311579222,1705253451558,-500.0,0.00030136,2]
[311579223,1705253451567,-723.59,0.00030136,2]
[311579224,1705253451577,-500.0,0.00030136,2]
[311579225,1705253451586,-500.0,0.00030136,2]
[311579226,1705253451595,-500.0,0.00030136,2]
[311579227,1705253451604,-500.0,0.00030136,2]
[311579228,1705253451613,-1305.05,0.00030136,2]
[311579230,1705253451623,-500.0,0.00030136,2]
[311579232,1705253451632,-500.0,0.00030136,2]
[311579234,1705253451641,-500.0,0.00030136,2]
[311579236,1705253451650,-909.97,0.00030136,2]
[311579238,1705253451659,-500.0,0.00030136,2]
[311579240,1705253451668,-1410.44,0.00030136,2]
[311579242,1705253451677,-500.0,0.00030136,2]
[311579244,1705253451687,-515.35,0.00030136,2]
[311579246,1705253451696,-533.03,0.00030136,2]
[311579248,1705253451705,-1023.79,0.00030136,2]
[311579250,1705253451714,-308.80970792,0.00030136,2]
[311579252,1705253451724,-543.47,0.00030136,2]
[311579254,1705253451733,-950.79,0.00030136,2]
[311579256,1705253451742,-960.55,0.00030136,2]
[311579258,1705253451752,-500.0,0.00030136,2]
[311579260,1705253451761,-500.0,0.00030136,2]
[311579261,1705253451770,-639.38,0.00030136,2]
[311579263,1705253451780,-884.88,0.00030136,2]
[311579265,1705253451790,-500.0,0.00030136,2]
[311579267,1705253451799,-500.0,0.00030136,2]
[311579269,1705253451808,-651.06,0.00030136,2]
[311579271,1705253451818,-480.19153789,0.00030136,2]
[311579273,1705253451827,-658.79,0.00030136,2]
[311579275,1705253451837,-500.0,0.00030136,2]
[311579277,1705253451846,-762.73,0.00030136,2]
[311579279,1705253451855,-500.0,0.00030136,2]
[311579281,1705253451864,-500.0,0.00030136,2]
[311579283,1705253451874,-500.0,0.00030136,2]
[311579285,1705253451883,-500.0,0.00030136,2]
[311579287,1705253451892,-500.0,0.00030136,2]
[311579289,1705253451901,-500.0,0.00030136,2]
[311579291,1705253451910,-508.73,0.00030136,2]
[311579293,1705253451919,-1203.5,0.00030136,2]
[311579295,1705253451929,-736.6,0.00030136,2]
[311579297,1705253451938,-500.0,0.00030136,2]
[311579299,1705253451948,-500.0,0.00030136,2]
[311579301,1705253451957,-1108.7,0.00030136,2]
[311579303,1705253451966,-500.0,0.00030136,2]
[311579305,1705253451975,-601.47,0.00030136,2]
[311579307,1705253451984,-500.0,0.00030136,2]
[311579309,1705253451993,-500.0,0.00030136,2]
[311579311,1705253452002,-500.0,0.00030136,2]
[311579313,1705253452012,-500.0,0.00030136,2]
[311579315,1705253452021,-500.0,0.00030136,2]
[311579317,1705253452030,-500.0,0.00030136,2]
[311579319,1705253452039,-500.0,0.00030136,2]
[311579321,1705253452048,-500.0,0.00030136,2]
[311579323,1705253452057,-500.0,0.00030136,2]
[311579325,1705253452065,-500.0,0.00030136,2]
[311579327,1705253452076,-500.0,0.00030136,2]
[311579329,1705253452086,-500.0,0.00030136,2]
[311579331,1705253452096,-500.0,0.00030136,2]
[311579333,1705253452106,-500.0,0.00030136,2]
[311579335,1705253452116,-500.0,0.00030136,2]
[311579337,1705253452126,-500.0,0.00030136,2]
[311579339,1705253452136,-500.0,0.00030136,2]
[311579342,1705253452146,-500.0,0.00030136,2]
[311579343,1705253452157,-500.0,0.00030136,2]
[311579346,1705253452167,-500.0,0.00030136,2]
[311579347,1705253452177,-500.0,0.00030136,2]
[311579350,1705253452188,-500.0,0.00030136,2]
[311579351,1705253452197,-500.0,0.00030136,2]
[311579354,1705253452215,-559.81563275,0.00030136,2]
[311579355,1705253452225,-500.0,0.00030136,2]
[311579357,1705253452239,-500.0,0.00030136,2]
[311579359,1705253452248,-556.57,0.00030136,2]
[311579361,1705253452258,-603.9,0.00030136,2]
[311579364,1705253452268,-500.0,0.00030136,2]
[311579366,1705253452280,-1191.11,0.00030136,2]
[311579367,1705253452290,-641.1,0.00030136,2]
[311579369,1705253452300,-669.68,0.00030136,2]
[311579371,1705253452310,-164.45134276,0.00030136,2]
[311579373,1705253452319,-994.28,0.00030136,2]
[311579375,1705253452330,-673.12,0.00030136,2]
[311579377,1705253452341,-522.75,0.00030136,2]
[311579380,1705253452352,-540.24,0.00030136,2]
[311579381,1705253452362,-733.25,0.00030136,2]
[311579384,1705253452377,-500.0,0.00030136,2]
[311579385,1705253452387,-500.0,0.00030136,2]
[311579387,1705253452398,-500.0,0.00030136,2]
[311579389,1705253452409,-1218.81,0.00030136,2]
[311579391,1705253452419,-500.0,0.00030136,2]
[311579394,1705253452430,-681.31,0.00030136,2]
[311579396,1705253452440,-500.0,0.00030136,2]
[311579398,1705253452449,-500.0,0.00030136,2]
[311579400,1705253452458,-500.0,0.00030136,2]
[311579402,1705253452467,-500.0,0.00030136,2]
[311579404,1705253452478,-532.79,0.00030136,2]
[311579406,1705253452488,-500.0,0.00030136,2]
[311579408,1705253452497,-500.0,0.00030136,2]
[311579410,1705253452507,-500.0,0.00030136,2]
[311579412,1705253452516,-500.0,0.00030136,2]
[311579413,1705253452526,-500.0,0.00030136,2]
[311579416,1705253452536,-1686.68,0.00030136,2]
[311579417,1705253452545,-500.0,0.00030136,2]
[311579419,1705253452555,-1202.13,0.00030136,2]
[311579421,1705253452565,-500.0,0.00030136,2]
[311579423,1705253452574,-500.0,0.00030136,2]
[311579426,1705253452584,-500.0,0.00030136,2]
[311579427,1705253452593,-500.0,0.00030136,2]
[311579430,1705253452603,-500.0,0.00030136,2]
[311579431,1705253452613,-500.0,0.00030136,2]
[311579433,1705253452622,-564.12,0.00030136,2]
[311579436,1705253452632,-500.0,0.00030136,2]
[311579438,1705253452641,-500.0,0.00030136,2]
[311579439,1705253452651,-500.0,0.00030136,2]
[311579442,1705253452660,-500.0,0.00030136,2]
[311579444,1705253452670,-662.9,0.00030136,2]
[311579446,1705253452679,-167.94416096,0.00030136,2]
[311579448,1705253452688,-500.0,0.00030136,2]
[311579450,1705253452697,-500.0,0.00030136,2]
[311579451,1705253452706,-500.0,0.00030136,2]
[311579453,1705253452716,-500.0,0.00030136,2]
[311579455,1705253452725,-747.32,0.00030136,2]
[311579457,1705253452734,-1767.62,0.00030136,2]
[311579460,1705253452743,-500.0,0.00030136,2]
[311579462,1705253452752,-500.0,0.00030136,2]
[311579463,1705253452763,-509.54427667,0.00030136,30]
[311579464,1705253452773,-500.0,0.00030136,2]
[311579465,1705253452782,-747.84,0.00030136,2]
[311579466,1705253452792,-500.0,0.00030136,2]
[311579467,1705253452801,-500.0,0.00030136,2]
[311579468,1705253452810,-769.66,0.00030136,2]
[311579469,1705253452819,-500.0,0.00030136,2]
[311579471,1705253452829,-500.0,0.00030136,2]
[311579473,1705253452838,-500.0,0.00030136,2]
[311579475,1705253452847,-500.0,0.00030136,2]
[311579477,1705253452855,-500.0,0.00030136,2]
[311579479,1705253452864,-703.32,0.00030136,2]
[311579481,1705253452873,-500.0,0.00030136,2]
[311579483,1705253452882,-500.0,0.00030136,2]
[311579485,1705253452891,-636.2,0.00030136,2]
[311579487,1705253452900,-607.16206912,0.00030136,2]
[311579489,1705253452909,-703.43,0.00030136,2]